bitfinex-derivatives/quotes_BNBF0:USTF0_20250507
["timestamp","ask_amount","ask_price","bid_price","bid_amount"]
[1746654268830,1.27102787,600.35,599.56,4.262]
[1746654269036,1.27102787,600.34,599.56,4.262]
[1746654269330,2.28663171,600.33,599.56,4.262]
[1746654269628,1.01560384,600.32,599.56,4.262]
[1746654270533,1.01560384,600.31,599.56,4.262]
[1746654270731,1.01560384,600.3,599.56,4.262]
[1746654270930,1.01560384,600.29,599.56,4.262]
[1746654271535,0.33313345,600.36,599.56,4.262]
[1746654271729,2.27942925,600.35,599.56,4.262]
[1746654271932,2.27942925,600.34,599.56,4.262]
[1746654272132,1.01393703,600.33,599.56,4.262]
[1746654272335,1.01393703,600.32,599.56,4.262]
[1746654272535,1.01393703,600.31,599.56,4.262]
[1746654272831,0.33313345,600.36,599.56,4.262]
[1746654273132,2.27945283,600.35,599.56,4.262]
[1746654273335,1.26552023,600.34,599.56,4.262]
[1746654273536,1.0139326,600.35,599.56,4.262]
[1746654273735,1.0139326,600.33,599.56,4.262]
[1746654273937,1.0139326,600.32,599.56,4.262]
[1746654274329,1.0139326,600.31,599.56,4.262]
[1746654274530,1.0139326,600.3,599.56,4.262]
[1746654275035,1.01375136,600.29,599.56,4.262]
[1746654275337,0.33313345,600.36,599.56,4.262]
[1746654275538,1.26530225,600.35,599.56,4.262]
[1746654275738,1.0137513,600.34,599.56,4.262]
[1746654275939,1.0137586,600.33,599.56,4.262]
[1746654276238,1.0137586,600.32,599.56,4.262]
[1746654276438,1.0137586,600.31,599.56,4.262]
[1746654276734,1.0137586,600.3,599.56,4.262]
[1746654277034,0.33313345,600.36,599.56,4.262]
[1746654277338,2.27903963,600.35,599.56,4.262]
[1746654277534,1.01374318,600.34,599.56,4.262]
[1746654277839,1.01374318,600.33,599.56,4.262]
[1746654278138,1.01374318,600.32,599.56,4.262]
[1746654278438,1.01374318,600.31,599.56,4.262]
[1746654278632,1.01374318,600.3,599.56,4.262]
[1746654279037,1.01374318,600.29,599.56,4.262]
[1746654279239,0.33313345,600.36,599.56,4.262]
[1746654279441,2.27881839,600.35,599.56,4.262]
[1746654279740,1.01364615,600.34,599.56,4.262]
[1746654280040,1.01364615,600.33,599.56,4.262]
[1746654280238,1.01364615,600.32,599.56,4.262]
[1746654280534,1.01364615,600.31,599.56,4.262]
[1746654280739,0.33313345,600.36,599.56,4.262]
[1746654291142,1.01259857,600.35,599.56,4.262]
[1746654291841,1.01259857,600.34,599.56,4.262]
[1746654292338,1.01259857,600.33,599.56,4.262]
[1746654292842,0.33313345,600.36,599.56,4.262]
[1746654293337,0.28996859,600.81,599.56,4.262]
[1746654293338,1.01245467,600.35,599.56,4.262]
[1746654293644,1.00767595,600.35,599.56,4.262]
[1746654294046,0.28996859,600.81,599.56,4.262]
[1746654294246,1.59479924,600.8,599.56,4.262]
[1746654294443,1.59480478,600.79,599.56,4.262]
[1746654294740,1.59481032,600.78,599.56,4.262]
[1746654294940,1.59481586,600.77,599.56,4.262]
[1746654295142,1.5948214,600.76,599.56,4.262]
[1746654295342,1.59482694,600.75,599.56,4.262]
[1746654295544,1.59483248,600.74,599.56,4.262]
[1746654295746,1.59483803,600.73,599.56,4.262]
[1746654295945,1.59484357,600.72,599.56,4.262]
[1746654296145,1.26190976,600.71,599.56,4.262]
[1746654296350,1.26190976,600.7,599.56,4.262]
[1746654296551,1.26190976,600.69,599.56,4.262]
[1746654296851,1.26190976,600.68,599.56,4.262]
[1746654297046,1.26190976,600.67,599.56,4.262]
[1746654297253,1.26190976,600.66,599.56,4.262]
[1746654297452,1.26190976,600.65,599.56,4.262]
[1746654297756,1.26190976,600.64,599.56,4.262]
[1746654297949,1.26190976,600.63,599.56,4.262]
[1746654298153,1.26190976,600.62,599.56,4.262]
[1746654298452,1.26190976,600.61,599.56,4.262]
[1746654298654,1.26190976,600.6,599.56,4.262]
[1746654298852,1.26190976,600.59,599.56,4.262]
[1746654299051,1.26190976,600.58,599.56,4.262]
[1746654299252,0.33293381,600.72,599.56,4.262]
[1746654299253,1.26190976,600.57,599.56,4.262]
[1746654299449,1.26190976,600.56,599.56,4.262]
[1746654299654,1.26115111,600.55,599.56,4.262]
[1746654299954,0.33293381,600.72,599.56,4.262]
[1746654300153,1.26115156,600.71,599.56,4.262]
[1746654300355,1.26115156,600.7,599.56,4.262]
[1746654300553,1.26115156,600.69,599.56,4.262]
[1746654300748,1.26115156,600.68,599.56,4.262]
[1746654300954,1.26115156,600.67,599.56,4.262]
[1746654301152,1.26115156,600.66,599.56,4.262]
[1746654301349,1.26115156,600.65,599.56,4.262]
[1746654301553,1.26167999,600.64,599.56,4.262]
[1746654301852,1.26167999,600.63,599.56,4.262]
[1746654302051,1.26167999,600.62,599.56,4.262]
[1746654302252,1.26167999,600.61,599.56,4.262]
[1746654302453,1.26167999,600.6,599.56,4.262]
[1746654302653,0.33293381,600.72,599.56,4.262]
[1746654302855,1.26189924,600.71,599.56,4.262]
[1746654303055,1.26189924,600.7,599.56,4.262]
[1746654303256,1.26189924,600.69,599.56,4.262]
[1746654303455,1.26189924,600.68,599.56,4.262]
[1746654303656,1.26189924,600.67,599.56,4.262]
[1746654303851,1.26189924,600.66,599.56,4.262]
[1746654304151,1.26189924,600.65,599.56,4.262]
[1746654304352,1.26189924,600.64,599.56,4.262]
[1746654304555,0.33293381,600.72,599.56,4.262]
[1746654304756,1.25760884,600.71,599.56,4.262]
[1746654304958,1.25760884,600.7,599.56,4.262]
[1746654305157,1.25760884,600.69,599.56,4.262]
[1746654305358,1.25760884,600.68,599.56,4.262]
[1746654305554,1.25760884,600.67,599.56,4.262]
[1746654305756,1.25760884,600.66,599.56,4.262]
[1746654305958,2.26798563,600.65,599.56,4.262]
[1746654306158,1.25760884,600.64,599.56,4.262]
[1746654306359,1.25760884,600.63,599.56,4.262]
[1746654306560,1.25760884,600.62,599.56,4.262]
[1746654306754,2.26798563,600.61,599.56,4.262]
[1746654306954,1.25760884,600.6,599.56,4.262]
[1746654307156,1.25760884,600.59,599.56,4.262]
[1746654307355,1.25760884,600.58,599.56,4.262]
[1746654307557,1.25760884,600.57,599.56,4.59557795]
[1746654307761,1.01037679,600.56,599.56,4.59557795]
[1746654308763,1.01037679,600.55,599.56,4.59557795]
[1746654309261,1.01037679,600.54,599.56,4.59557795]
[1746654309964,0.33293381,600.72,599.56,4.59557795]
[1746654310263,1.25746414,600.71,599.56,4.59557795]
[1746654310460,1.25746414,600.7,599.56,4.59557795]
[1746654310664,1.25746414,600.69,599.56,4.59557795]
[1746654310965,1.25746414,600.68,599.56,4.59557795]
[1746654311263,2.26823203,600.67,599.56,4.59557795]
[1746654311463,2.26823203,600.66,599.56,4.59557795]
[1746654311660,1.25746414,600.65,599.56,4.59557795]
[1746654311866,2.26823203,600.64,599.56,4.59557795]
[1746654312067,1.25768394,600.63,599.56,4.59557795]
[1746654312266,1.25768394,600.62,599.56,4.59557795]
[1746654312466,1.01076789,600.62,599.56,4.59557795]
[1746654312663,0.33293381,600.72,599.56,4.59557795]
[1746654312664,1.01076789,600.61,599.56,4.59557795]
[1746654312866,1.01076789,600.6,599.56,4.59557795]
[1746654313363,0.33293381,600.72,599.56,4.59557795]
[1746654313567,1.25742967,600.71,599.56,4.59557795]
[1746654313868,2.26835427,600.7,599.57,0.33357239]
[1746654314067,1.25742967,600.69,599.57,0.33357239]
[1746654314368,1.0109246,600.68,599.57,0.33357239]
[1746654314765,1.0109246,600.67,599.57,0.33357239]
[1746654315070,1.0109246,600.67,599.57,1.39630857]
[1746654315368,1.0109246,600.66,599.57,1.39630857]
[1746654315970,1.0109246,600.65,599.57,1.39630857]
[1746654316169,0.33293381,600.72,599.57,1.39630857]
[1746654316366,1.2584746,600.71,599.57,1.39630857]
[1746654316567,1.2584746,600.7,599.57,0.33357239]
[1746654316765,2.26963214,600.69,599.57,0.33357239]
[1746654316967,1.2584746,600.68,599.57,0.33357239]
[1746654317167,1.01115754,600.69,599.57,0.33357239]
[1746654317366,1.25750685,600.68,599.57,0.33357239]
[1746654317571,1.01115754,600.67,599.58,1.084]
[1746654317772,1.01115754,600.67,599.59,0.33356126]
[1746654317968,1.01115754,600.66,599.59,0.33356126]
[1746654318472,1.01115754,600.65,599.59,0.33356126]
[1746654319074,1.01115754,600.64,599.59,0.33356126]
[1746654319771,1.01115754,600.63,599.59,0.33356126]
[1746654320368,0.33293381,600.72,599.59,0.33356126]
[1746654320572,1.25741873,600.71,599.59,0.33356126]
[1746654321268,1.01151815,600.7,599.59,0.33356126]
[1746654321774,1.01151815,600.69,599.59,0.33356126]
[1746654322272,1.01151815,600.68,599.59,0.33356126]
[1746654322873,1.01151815,600.67,599.59,0.33356126]
[1746654323174,1.01151815,600.66,599.59,0.33356126]
[1746654323774,1.01151815,600.65,599.59,0.33356126]
[1746654324172,1.01151815,600.64,599.59,0.33356126]
[1746654324374,1.01151815,600.63,599.59,0.33356126]
[1746654325176,1.01151815,600.62,599.59,0.33356126]
[1746654325775,1.01151815,600.61,599.59,0.33356126]
[1746654326370,0.33293381,600.72,599.59,0.33356126]
[1746654326573,1.25788354,600.71,599.59,0.33356126]
[1746654326772,1.25788354,600.7,599.59,0.33356126]
[1746654326972,1.25788354,600.69,599.59,0.33356126]
[1746654327272,1.25788354,600.68,599.59,0.33356126]
[1746654327476,2.27067864,600.67,599.59,0.33356126]
[1746654327674,1.25788354,600.66,599.59,0.33356126]
[1746654327873,1.0127951,600.65,599.59,0.33356126]
[1746654328171,1.0127951,600.64,599.59,0.33356126]
[1746654328777,1.0127951,600.63,599.59,0.33356126]
[1746654329072,1.0127951,600.62,599.59,0.33356126]
[1746654329578,1.0127951,600.61,599.59,0.33356126]
[1746654329878,1.0127951,600.6,599.59,0.33356126]
[1746654330378,0.33293381,600.72,599.59,0.33356126]
[1746654330578,1.25835739,600.71,599.59,0.33356126]
[1746654330778,1.25835739,600.7,599.59,0.33356126]
[1746654330978,2.27166773,600.69,599.59,0.33356126]
[1746654331279,1.25835739,600.68,599.59,0.33356126]
[1746654331479,1.25835739,600.67,599.59,0.33356126]
[1746654331680,2.27166773,600.66,599.59,0.33356126]
[1746654331879,1.25835739,600.65,599.59,0.33356126]
[1746654332078,1.25835739,600.64,599.59,0.33356126]
[1746654332381,1.25640919,600.63,599.59,0.33356126]
[1746654332574,1.01331034,600.64,599.59,0.33356126]
[1746654332879,1.01331034,600.63,599.59,0.33356126]
[1746654333280,1.01331034,600.63,599.68,1.06273618]
[1746654333473,0.33293381,600.72,599.68,1.06273618]
[1746654333474,1.01331034,600.62,599.68,1.06273618]
[1746654334080,1.01331034,600.61,599.68,1.06273618]
[1746654334582,1.01331034,600.6,599.68,1.06273618]
[1746654335280,1.01331034,600.59,599.68,1.06273618]
[1746654335579,1.01331034,600.58,599.68,1.06273618]
[1746654335781,0.33293381,600.72,599.65,1.06273618]
[1746654335979,1.2584875,600.71,599.65,1.06273618]
[1746654336181,1.2584875,600.7,599.65,1.06273618]
[1746654336381,1.2584875,600.69,599.65,1.06273618]
[1746654336582,2.27140807,600.68,599.65,1.06273618]
[1746654336776,1.2584875,600.67,599.65,1.06273618]
[1746654336980,2.27140807,600.66,599.65,1.06273618]
[1746654337280,2.27140807,600.65,599.65,1.06273618]
[1746654337483,1.2584875,600.64,599.65,1.06273618]
[1746654337782,1.25917613,600.63,599.65,1.06273618]
[1746654337981,1.01292057,600.62,599.65,1.06273618]
[1746654338282,1.01292057,600.61,599.65,1.06273618]
[1746654338578,1.01292057,600.6,599.65,1.06273618]
[1746654338882,1.01292057,600.6,599.69,1.06273618]
[1746654339084,1.01292057,600.59,599.69,1.06273618]
[1746654339680,1.01292057,600.58,599.69,1.06273618]
[1746654340386,0.33293381,600.72,599.69,1.06273618]
[1746654340585,1.25880193,600.71,599.69,1.06273618]
[1746654340886,1.25880193,600.71,599.59,0.33356126]
[1746654340887,1.25880193,600.7,599.71,1.06273618]
[1746654341185,2.27197271,600.69,599.71,1.06273618]
[1746654341384,2.27197271,600.68,599.71,1.06273618]
[1746654341583,1.25880193,600.67,599.71,1.06273618]
[1746654341781,1.25861578,600.66,599.71,1.06273618]
[1746654341983,1.25861578,600.65,599.71,1.06273618]
[1746654342185,1.25861578,600.64,599.71,1.06273618]
[1746654342485,1.25861578,600.63,599.73,1.06273618]
[1746654342684,1.01317078,600.63,599.73,1.06273618]
[1746654343085,1.01317078,600.62,599.73,1.06273618]
[1746654343889,1.01317078,600.61,599.73,1.06273618]
[1746654344485,1.01317078,600.6,599.73,1.06273618]
[1746654344686,1.01317078,600.59,599.73,1.06273618]
[1746654345184,1.01317078,600.58,599.73,1.06273618]
[1746654345482,1.01317078,600.57,599.73,1.06273618]
[1746654346084,0.33293381,600.72,599.73,1.06273618]
[1746654346286,1.25721104,600.71,599.73,1.06273618]
[1746654346482,1.25721104,600.7,599.83,1.06273618]
[1746654346687,1.25721104,600.69,599.83,1.06273618]
[1746654346885,1.25721104,600.68,599.83,1.06273618]
[1746654347187,2.27059899,600.67,599.83,1.06273618]
[1746654347387,1.25721104,600.66,599.83,1.06273618]
[1746654347582,2.27059899,600.65,599.83,1.06273618]
[1746654347788,1.25721104,600.64,599.83,1.06273618]
[1746654347988,1.25721104,600.63,599.83,1.06273618]
[1746654348288,1.25721104,600.62,599.83,1.06273618]
[1746654348491,1.25721104,600.61,599.83,1.06273618]
[1746654348685,1.01338795,600.62,599.83,1.06273618]
[1746654348885,2.27101305,600.61,599.83,1.06273618]
[1746654349085,1.01338795,600.61,599.83,1.06273618]
[1746654349285,1.01338795,600.61,599.84,1.06273618]
[1746654349486,1.01338795,600.6,599.84,1.06273618]
[1746654350091,1.01338795,600.59,599.84,1.06273618]
[1746654350689,1.01338795,600.58,599.84,1.06273618]
[1746654351090,1.01338795,600.57,599.84,1.06273618]
[1746654351591,1.01338795,600.56,599.84,1.06273618]
[1746654352087,1.01338795,600.55,599.84,1.06273618]
[1746654352491,0.33293381,600.72,599.84,1.06273618]
[1746654352693,2.27161597,600.71,599.84,1.06273618]
[1746654352893,1.2580592,600.7,599.84,1.06273618]
[1746654353088,1.2580592,600.69,599.84,1.06273618]
[1746654353389,0.33293381,600.72,599.84,1.06273618]
[1746654353390,1.01355677,600.68,599.84,1.06273618]
[1746654354196,1.01355677,600.67,599.81,1.06273618]
[1746654354394,1.2578918,600.66,599.81,1.06273618]
[1746654354690,2.27144857,600.65,599.81,1.06273618]
[1746654354893,1.2578918,600.64,599.81,1.06273618]
[1746654355194,1.2578918,600.63,599.81,1.06273618]
[1746654355394,1.2578918,600.62,599.81,1.06273618]
[1746654355590,1.2578918,600.61,599.81,1.06273618]
[1746654355795,2.27144857,600.6,599.81,1.06273618]
[1746654355998,1.2578918,600.59,599.81,1.06273618]
[1746654356296,1.01355677,600.58,599.81,1.06273618]
[1746654356594,1.01355677,600.58,599.77,1.06273618]
[1746654356791,1.01355677,600.57,599.77,1.06273618]
[1746654357293,1.01355677,600.56,599.77,1.06273618]
[1746654357896,1.01355677,600.55,599.77,1.06273618]
[1746654358091,1.01355677,600.55,599.7,1.06273618]
[1746654358293,1.01355677,600.54,599.7,1.06273618]
[1746654358592,1.01355677,600.53,599.7,1.06273618]
[1746654359296,0.33293381,600.72,599.7,1.06273618]
[1746654359592,0.33293381,600.72,599.44,1.061]
[1746654359593,1.26012062,600.71,599.67,1.06273618]
[1746654359792,1.26012062,600.7,599.67,1.06273618]
[1746654359998,1.26012062,600.69,599.67,1.06273618]
[1746654360297,1.26012062,600.68,599.67,1.06273618]
[1746654360493,1.26012062,600.67,599.67,1.06273618]
[1746654360697,1.01506387,600.69,599.67,1.06273618]
[1746654360698,1.26012062,600.66,599.67,1.06273618]
[1746654360893,1.26012062,600.65,599.67,1.39625294]
[1746654361091,1.26012062,600.64,599.67,1.39625294]
[1746654361295,1.26012062,600.63,599.67,1.39625294]
[1746654361493,1.26012062,600.62,599.67,1.39625294]
[1746654361697,2.27518449,600.61,599.67,1.39625294]
[1746654361897,2.27518449,600.6,599.67,1.39625294]
[1746654362099,1.26022472,600.59,599.67,1.39625294]
[1746654362300,1.01506387,600.58,599.67,1.39625294]
[1746654362701,1.01506387,600.57,599.67,1.39625294]
[1746654363202,1.01506387,600.56,599.69,1.06273618]
[1746654363501,1.01506387,600.55,599.69,1.06273618]
[1746654364104,1.01506387,600.54,599.69,1.06273618]
[1746654364499,1.01506387,600.53,599.69,1.06273618]
[1746654365099,1.01506387,600.52,599.69,1.06273618]
[1746654365500,1.01506387,600.51,599.69,1.06273618]
[1746654366106,0.33293381,600.72,599.71,1.06273618]
[1746654366305,1.25948667,600.71,599.71,1.06273618]
[1746654366502,1.25948667,600.7,599.71,1.06273618]
[1746654366702,1.25948667,600.69,599.71,1.06273618]
[1746654366901,2.27457805,600.68,599.71,1.06273618]
[1746654367106,1.25948667,600.67,599.79,1.06273618]
[1746654367304,1.25948667,600.66,599.79,1.06273618]
[1746654367505,1.25948667,600.65,599.79,1.06273618]
[1746654367705,1.25948667,600.64,599.79,1.06273618]
[1746654367901,2.27457805,600.63,599.79,1.06273618]
[1746654368101,1.25948667,600.62,599.79,1.06273618]
[1746654368406,2.27457805,600.61,599.79,1.06273618]
[1746654368706,2.27457805,600.6,599.79,1.06273618]
[1746654368905,1.25948667,600.59,599.79,1.06273618]
[1746654369102,1.01509138,600.58,599.73,1.06273618]
[1746654369607,1.01509138,600.57,599.73,1.06273618]
[1746654370206,1.01509138,600.56,599.73,1.06273618]
[1746654371208,1.01509138,600.55,599.71,1.06273618]
[1746654371707,1.01509138,600.54,599.71,1.06273618]
[1746654372306,1.01509138,600.53,599.71,1.06273618]
[1746654372807,0.33293381,600.72,599.71,1.06273618]
[1746654373107,1.01448839,600.71,599.71,1.06273618]
[1746654373603,1.01448839,600.7,599.71,1.06273618]
[1746654374409,1.01448839,600.69,599.71,1.06273618]
[1746654375007,1.01448839,600.69,599.7,0.28984783]
[1746654375008,1.01448839,600.69,599.7,1.35258401]
[1746654375208,1.01448839,600.69,599.7,1.68608409]
[1746654375407,1.01448839,600.68,599.7,1.68608409]
[1746654375610,1.01448839,600.68,599.71,1.023]
[1746654375810,1.01448839,600.67,599.71,1.023]
[1746654376112,1.01448839,600.66,599.71,1.023]
[1746654376608,1.01448839,600.65,599.71,1.023]
[1746654376911,1.01448839,600.65,599.79,1.06273618]
[1746654377110,1.01448839,600.64,599.79,1.06273618]
[1746654377310,1.01448839,600.63,599.79,1.06273618]
[1746654377711,1.01448839,600.62,599.79,1.06273618]
[1746654378413,1.01448839,600.61,599.79,1.06273618]
[1746654378914,1.01448839,600.6,599.79,1.06273618]
[1746654379110,1.01448839,600.6,599.8,1.06273618]
[1746654379316,1.01448839,600.59,599.8,1.06273618]
[1746654379717,0.33293381,600.72,599.8,1.06273618]
[1746654380316,1.01389763,600.71,599.8,1.06273618]
[1746654381117,1.01389763,600.7,599.8,1.06273618]
[1746654381520,1.01389763,600.7,599.83,1.06273618]
[1746654381714,1.01389763,600.69,599.83,1.06273618]
[1746654382014,1.01389763,600.68,599.83,1.06273618]
[1746654382417,1.01389763,600.67,599.83,1.06273618]
[1746654382919,1.01389763,600.66,599.83,1.06273618]
[1746654383521,1.01389763,600.65,599.75,0.969]
[1746654384119,1.01389763,600.64,599.75,0.969]
[1746654384719,1.01389763,600.63,599.75,0.969]
[1746654385020,0.33293381,600.72,599.75,0.969]
[1746654385921,1.01255249,600.71,599.75,0.969]
[1746654386521,1.01255249,600.7,599.75,0.969]
[1746654387117,1.01255249,600.69,599.75,0.969]
[1746654387824,1.01255249,600.68,599.75,0.969]
[1746654388718,1.01255249,600.67,599.75,0.969]
[1746654388921,1.01255249,600.66,599.75,0.969]
[1746654389423,1.01255249,600.65,599.75,0.969]
[1746654390125,0.33293381,600.72,599.75,0.969]
[1746654390823,1.01285709,600.71,599.75,0.969]
[1746654391120,1.01285709,600.7,599.75,0.969]
[1746654391519,1.01285709,600.69,599.75,0.969]
[1746654391718,1.01285709,600.68,599.75,0.969]
[1746654391917,1.01285709,600.67,599.75,0.969]
[1746654392719,1.01285709,600.66,599.75,0.969]
[1746654393125,1.01285709,600.65,599.75,0.969]
[1746654393421,0.33293381,600.72,599.75,0.969]
[1746654393925,1.01239042,600.71,599.75,0.969]
[1746654394223,1.01239042,600.7,599.75,0.969]
[1746654394824,1.01239042,600.69,599.75,0.969]
[1746654395324,1.01239042,600.68,599.75,0.969]
[1746654395824,1.01239042,600.67,599.75,0.969]
[1746654396524,1.01239042,600.66,599.75,0.969]
[1746654396820,1.01239042,600.65,599.75,0.969]
[1746654397124,0.33293381,600.72,599.75,0.969]
[1746654397424,0.33293381,600.72,599.8,1.06273618]
[1746654397818,1.01224636,600.71,599.8,1.06273618]
[1746654398225,1.01224636,600.7,599.8,1.06273618]
[1746654398825,1.01224636,600.69,599.8,1.06273618]
[1746654399222,1.01224636,600.68,599.8,1.06273618]
[1746654399726,1.01224636,600.68,599.83,1.06273618]
[1746654400027,1.01224636,600.67,599.83,1.06273618]
[1746654400421,1.01224636,600.66,599.83,1.06273618]
[1746654401028,0.33293381,600.72,599.83,1.06273618]
[1746654401729,0.33293381,600.72,599.81,1.06273618]
[1746654401928,1.01227687,600.71,599.81,1.06273618]
[1746654402631,1.01227687,600.7,599.81,1.06273618]
[1746654402823,1.01227687,600.69,599.81,1.06273618]
[1746654403028,1.01227687,600.68,599.81,1.06273618]
[1746654403531,1.01227687,600.67,599.81,1.06273618]
[1746654403832,1.01227687,600.66,599.83,1.06273618]
[1746654404031,0.33293381,600.72,599.83,1.06273618]
[1746654404631,1.01265969,600.71,599.83,1.06273618]
[1746654405231,0.33293381,600.72,599.83,1.06273618]
[1746654405232,1.01265969,600.7,599.83,1.06273618]
[1746654405435,1.01265969,600.7,599.81,1.06273618]
[1746654405630,1.01265969,600.69,599.81,1.06273618]
[1746654406234,0.33293381,600.72,599.81,1.06273618]
[1746654406434,0.33293381,600.72,599.81,2.06973618]
[1746654407134,1.01292629,600.71,599.81,2.06973618]
[1746654407329,1.01292629,600.71,599.81,1.007]
[1746654407634,1.01292629,600.7,599.81,1.007]
[1746654408035,1.01292629,600.69,599.81,1.007]
[1746654408434,1.01292629,600.68,599.81,1.007]
[1746654408935,0.33293381,600.72,599.81,1.007]
[1746654409536,1.01313746,600.71,599.81,1.007]
[1746654409736,1.01313746,600.71,599.81,2.057]
[1746654410238,1.01313746,600.71,599.81,2.849]
[1746654410437,1.01313746,600.7,599.81,2.849]
[1746654411137,1.01313746,600.69,599.81,2.849]
[1746654411634,0.33293381,600.72,599.81,2.849]
[1746654412242,1.0132819,600.71,599.81,2.849]
[1746654412839,1.0132819,600.7,599.81,2.849]
[1746654413139,1.0132819,600.69,599.81,2.849]
[1746654413339,0.33293381,600.72,599.81,3.888]
[1746654413736,1.01304087,600.71,599.81,3.888]
[1746654414040,0.33293381,600.72,599.81,4.95073618]
[1746654414041,1.01304087,600.7,599.81,4.95073618]
[1746654414335,1.01304087,600.69,599.81,4.95073618]
[1746654414639,1.01304087,600.68,599.81,4.95073618]
[1746654415040,1.01304087,600.67,599.81,4.95073618]
[1746654415941,1.01304087,600.66,599.81,4.95073618]
[1746654416135,1.01304087,600.66,599.83,1.06273618]
[1746654416343,0.33293381,600.72,599.83,1.06273618]
[1746654416839,1.01326412,600.71,599.83,1.06273618]
[1746654417144,1.01326412,600.71,599.89,1.06273618]
[1746654417537,1.01326412,600.7,599.89,1.06273618]
[1746654418041,1.01326412,600.69,599.89,1.06273618]
[1746654418441,1.01326412,600.68,599.89,1.06273618]
[1746654419143,1.01326412,600.67,599.89,1.06273618]
[1746654419342,1.01326412,600.67,599.9,1.06273618]
[1746654419740,1.01326412,600.66,599.9,1.06273618]
[1746654420543,1.01326412,600.65,599.9,1.06273618]
[1746654421042,1.01326412,600.64,599.9,1.06273618]
[1746654421243,1.01326412,600.64,599.86,1.06273618]
[1746654421843,0.33293381,600.72,599.86,1.06273618]
[1746654422043,1.01480151,600.71,599.86,1.06273618]
[1746654422443,1.01480151,600.7,599.86,1.06273618]
[1746654422642,1.01480151,600.69,599.86,1.06273618]
[1746654423344,1.01480151,600.68,599.86,1.06273618]
[1746654423845,1.01480151,600.67,599.86,1.06273618]
[1746654424444,1.01480151,600.66,599.86,1.06273618]
[1746654424944,1.01480151,600.65,599.86,1.06273618]
[1746654425548,1.01480151,600.64,599.86,1.06273618]
[1746654425846,1.01480151,600.64,599.81,2.881]
[1746654425847,1.01480151,600.64,599.85,1.06273618]
[1746654426045,1.01480151,600.63,599.85,1.06273618]
[1746654426242,0.33293381,600.72,599.85,1.06273618]
[1746654426743,1.0153004,600.71,599.85,1.06273618]
[1746654427150,1.0153004,600.7,599.85,1.06273618]
[1746654427349,1.0153004,600.69,599.86,1.185]
[1746654427847,1.0153004,600.68,599.86,1.185]
[1746654428248,1.0153004,600.67,599.86,1.185]
[1746654428449,1.0153004,600.66,599.86,1.185]
[1746654429045,1.0153004,600.65,599.86,1.185]
[1746654429650,1.0153004,600.64,599.86,1.185]
[1746654429951,1.0153004,600.63,599.86,1.185]
[1746654430350,1.0153004,600.62,599.86,1.185]
[1746654430955,0.33293381,600.72,599.86,1.185]
[1746654431454,1.01641407,600.71,599.86,1.185]
[1746654431755,1.01641407,600.71,599.87,1.06273618]
[1746654431955,1.01641407,600.7,599.87,1.06273618]
[1746654432455,1.01641407,600.69,599.87,1.06273618]
[1746654432761,1.01641407,600.68,599.87,1.06273618]
[1746654433256,1.01641407,600.67,599.88,1.071]
[1746654433754,1.01641407,600.66,599.88,1.071]
[1746654433951,1.01641407,600.65,599.88,1.071]
[1746654434456,1.01641407,600.64,599.88,1.071]
[1746654434656,1.01641407,600.63,599.88,1.071]
[1746654435556,1.01641407,600.62,599.88,1.071]
[1746654435858,1.01641407,600.62,599.94,1.06273618]
[1746654436050,1.01641407,600.61,599.94,1.06273618]
[1746654436555,1.01641407,600.6,599.94,1.06273618]
[1746654436756,0.33293381,600.72,599.94,1.06273618]
[1746654437355,1.01655041,600.71,599.94,1.06273618]
[1746654437556,1.01655041,600.71,599.95,1.06273618]
[1746654438055,1.01655041,600.7,599.95,1.06273618]
[1746654438660,1.01655041,600.69,599.95,1.06273618]
[1746654439057,1.01655041,600.68,599.95,1.06273618]
[1746654439356,1.01655041,600.67,599.95,1.06273618]
[1746654439953,1.01655041,600.66,599.95,1.06273618]
[1746654440353,1.01655041,600.65,599.95,1.06273618]
[1746654440757,1.01655041,600.64,599.95,1.06273618]
[1746654441160,1.01655041,600.63,599.95,1.06273618]
[1746654441658,1.01655041,600.62,599.95,1.06273618]
[1746654441857,1.01655041,600.61,599.95,1.06273618]
[1746654442160,1.01655041,600.6,599.95,1.06273618]
[1746654442955,1.01655041,600.59,599.95,1.06273618]
[1746654443355,0.33293381,600.72,599.95,1.06273618]
[1746654444155,1.01666916,600.71,599.95,1.06273618]
[1746654444559,1.01666916,600.7,599.95,1.06273618]
[1746654444760,1.01666916,600.7,599.96,1.147]
[1746654445160,1.01666916,600.69,599.96,1.147]
[1746654445460,1.01666916,600.68,599.96,1.147]
[1746654445962,1.01666916,600.67,599.96,1.147]